{"text_format":"1","workbook":"xlsx","n_sheets":3,"sheets":["Other Events","Events","Calendar"],"not_rendered":{"charts":0,"images":0,"macros":1,"external_links":0,"defined_names":0,"comments":2,"pivot_tables":0},"unopened":[],"bounds":{"document_bytes":16777216,"sheet_cells":100000,"rows_first":2000,"rows_last":500,"rows_between":2000,"halvings":0,"cell_chars":16384,"cell_head_chars":4096},"cells_cut":0,"cells_raw":0,"read":"whole","date_system":"1900"}

{"sheet":"Other Events","index":0,"n_rows":5,"n_cols":8,"rows_kept":5,"cut":false,"hidden":false,"merged":[]}
["اليوم","الشهر","اليوم","الشهر","اللون","التصنيف",null,"المناسبة"]
[{"$f":"C2","v":29},4,29,{"$f":"B2","v":4},null,"خليجية - عامة",null,"أسبوع المرور الخليجي"]
[{"$f":"C3","v":6},10,6,{"$f":"B3","v":10},null,"عربية - اجتماعية",null,"اليوم العربي للطفل"]
[{"$f":"C4","v":15},9,15,{"$f":"B4","v":9},null,"عربية - بيئية",null,"اليوم العربي للنخلة"]
[{"$f":"C5","v":14},10,14,{"$f":"B5","v":10},null,"عربية - بيئية",null,"اليوم العربي للبيئة"]

{"sheet":"Events","index":1,"n_rows":47,"n_cols":19,"rows_kept":47,"cut":false,"hidden":false,"merged":[[1,11,1,12],[1,13,2,13],[1,7,2,7],[1,2,1,3],[1,4,2,4],[1,15,2,15],[1,0,1,1],[1,6,2,6],[1,5,2,5],[1,14,2,14],[0,18,2,18],[1,16,2,16],[0,0,0,7],[0,9,0,16],[1,9,1,10]]}
["أحداث بالتقويم الهجري",null,null,null,null,null,null,null,null,"أحداث بالتقويم الميلادي",null,null,null,null,null,null,null,null,"مع تحيات أبو هادي"]
["بداية الحدث",null,"نهاية الحدث",null,"اللون","تصنيف الحدث","تثبيت يوم الجمعة","تعليق الحدث / المناسبة",null,"بداية الحدث",null,"نهاية الحدث",null,"اللون","تصنيف الحدث","تثبيت يوم الجمعة","تعليق الحدث / المناسبة"]
["يوم","شهر","يوم","شهر",null,null,null,null,null,"يوم","شهر","يوم","شهر"]
[8,1,8,1,"لون الخط","اختبارات المدارس",null,"بداية اختبار الفصل الأول",null,{"$f":"L4","v":8},3,8,{"$f":"K4","v":3},"لون الخط","عالمية - اجتماعية",null,"اليوم العالمي للمرأة",null,4]
[23,5,23,5,"لون الخط","اختبارات المدارس",null,"بداية اختبار الفصل الثاني",null,27,4,20,4,"لون الخط","عالمية - اجتماعية",null,"اليوم العالمي للصم",null,9]
[7,8,7,8,"لون الخط","اختبارات المدارس",null,"بداية اختبار الدور الثاني",null,{"$f":"L6","v":10},5,10,5,"لون الخط","عالمية - اجتماعية",null,"يوم الأم",null,2006]
[29,1,29,1,"لون الخط","العودة للمدارس",null,"بداية الدراسة للفصل الثاني",null,15,5,15,5,"لون الخط","عالمية - اجتماعية",null,"اليوم العالمي للأسرة"]
[5,8,5,8,"لون الخط","العودة للمدارس",null,"عودة المعلمين",null,14,6,14,6,"لون الخط","عالمية - اجتماعية",null,"يوم الأب"]
[26,8,26,8,"لون الخط","العودة للمدارس",null,"بداية العام الدراسي 1428-1429هـ",null,1,10,1,10,"لون الخط","عالمية - اجتماعية",null,"اليوم العالمي للمسنين"]
[1,10,3,10,"لون الخط","إجازات",null,"إجازة عيد الفطر",null,7,10,7,10,"لون الخط","عالمية - اجتماعية",null,"اليوم العالمي للطفل"]
[10,12,13,12,"لون الخط","إجازات",null,"إجازة عيد الأضحى",null,17,10,17,10,"لون الخط","عالمية - اجتماعية",null,"اليوم العالمي لمكافحة الفقر"]
[22,1,22,1,"لون الخط","إجازات المدارس",null,"بداية إجازة منتصف العام",null,3,12,3,12,"لون الخط","عالمية - اجتماعية",null,"اليوم العالمي للإعاقة"]
[8,6,8,6,"لون الخط","إجازات المدارس",null,"بداية إجازة نهاية العام للطلاب",null,13,3,13,3,"لون الخط","عالمية - بيئية",null,"أسبوع الشجرة"]
[10,1,10,1,"لون الخط","دينية",null,"عاشوراء",null,20,3,14,3,"لون الخط","عالمية - بيئية",null,"أسبوع النظافة"]
[1,9,30,9,"لون الخط",null,true,"رمضان",null,{"$f":"L15","v":22},3,22,3,"لون الخط","عالمية - بيئية",null,"اليوم العالمي للمياه"]
[null,null,null,null,null,null,null,null,null,23,3,23,3,"لون الخط","عالمية - بيئية",null,"اليوم العالمي للأرصاد الجوية"]
[null,null,null,null,null,null,null,null,null,22,4,22,4,"لون الخط","عالمية - بيئية",null,"اليوم العالمي للأرض"]
[null,null,null,null,null,null,null,null,null,5,6,5,6,"لون الخط","عالمية - بيئية",null,"اليوم العالمي للبيئة"]
[null,null,null,null,null,null,null,null,null,7,10,7,10,"لون الخط","عالمية - بيئية",null,"اليوم العالمي للمستوطنات البشرية"]
[null,null,null,null,null,null,null,null,null,13,10,13,10,"لون الخط","عالمية - بيئية",null,"اليوم العالمي للحد من الكوارث الطبيعية"]
[null,null,null,null,null,null,null,null,null,17,5,17,5,"لون الخط","عالمية - توعوية",null,"اليوم العالمي للإتصالات"]
[null,null,null,null,null,null,null,null,null,26,6,26,6,"لون الخط","عالمية - توعوية",null,"اليوم العالمي لمكحافحة المخدرات"]
[null,null,null,null,null,null,null,null,null,11,7,11,7,"لون الخط","عالمية - توعوية",null,"اليوم العالمي للسكان"]
[null,null,null,null,null,null,null,null,null,7,9,7,9,"لون الخط","عالمية - توعوية",null,"يوم العمل العالمي"]
[null,null,null,null,null,null,null,null,null,9,10,9,10,"لون الخط","عالمية - توعوية",null,"اليوم العالمي للبريد"]
[null,null,null,null,null,null,null,null,null,23,10,23,10,"لون الخط","عالمية - توعوية",null,"اليوم العالمي للتنمية"]
[null,null,null,null,null,null,null,null,null,21,3,21,3,"لون الخط","عالمية - حقوقية",null,"اليوم العالمي للقضاء على التميز العنصري"]
[null,null,null,null,null,null,null,null,null,1,5,1,5,"لون الخط","عالمية - حقوقية",null,"يوم العمال"]
[null,null,null,null,null,null,null,null,null,4,6,4,6,"لون الخط","عالمية - حقوقية",null,"اليوم العالمي لضحايا العنف من الأطفال"]
[null,null,null,null,null,null,null,null,null,16,8,16,8,"لون الخط","عالمية - حقوقية",null,"اليوم العالمي لانفجار القنبلة الذرية"]
[null,null,null,null,null,null,null,null,null,10,9,10,9,"لون الخط","عالمية - حقوقية",null,"اليوم العالمي للسلام"]
[null,null,null,null,null,null,null,null,null,24,10,24,10,"لون الخط","عالمية - حقوقية",null,"يوم الأمم المتحدة"]
[null,null,null,null,null,null,null,null,null,19,11,19,11,"لون الخط","عالمية - حقوقية",null,"الــيــوم الـعـالمـي لـلـتــضـامـن مــع الــشــعــب الفلسطيني"]
[null,null,null,null,null,null,null,null,null,5,12,5,12,"لون الخط","عالمية - حقوقية",null,"اليوم العالمي لمتطوعي الأمم المتحدة"]
[null,null,null,null,null,null,null,null,null,10,12,10,12,"لون الخط","عالمية - حقوقية",null,"اليوم العالمي لحقوق الإنسان"]
[null,null,null,null,null,null,null,null,null,24,3,24,3,"لون الخط","عالمية - صحية",null,"اليوم العالمي لمكافحة مرض الدرن"]
[null,null,null,null,null,null,null,null,null,7,4,7,4,"لون الخط","عالمية - صحية",null,"يوم الصحة العالمي"]
[null,null,null,null,null,null,null,null,null,7,5,1,5,"لون الخط","عالمية - صحية",null,"الأسبوع الصحي للتمريض"]
[null,null,null,null,null,null,null,null,null,7,5,1,5,"لون الخط","عالمية - صحية",null,"الأسبوع الصحي لرعاية الفم والأسنان"]
[null,null,null,null,null,null,null,null,null,{"$f":"L40","v":31},5,31,5,"لون الخط","عالمية - صحية",null,"اليوم العالمي لمحافحة التدخين"]
[null,null,null,null,null,null,null,null,null,10,10,10,10,"لون الخط","عالمية - صحية",null,"اليوم العالمي للصحة النفسية"]
[null,null,null,null,null,null,null,null,null,16,10,16,10,"لون الخط","عالمية - صحية",null,"يوم الغذاء العالمي"]
[null,null,null,null,null,null,null,null,null,14,11,14,11,"لون الخط","عالمية - صحية",null,"اليوم العالمي لمرض السكر"]
[null,null,null,null,null,null,null,null,null,1,12,1,12,"لون الخط","عالمية - صحية",null,"اليوم العالمي لللأيدز"]
[null,null,null,null,null,null,null,null,null,12,3,12,3,"لون الخط","عالمية - عامة",null,"يوم الدفاع المدني"]
[null,null,null,null,null,null,null,null,null,18,3,18,3,"لون الخط","عالمية - عامة",null,"اليوم العالمي للخدمة المدنية"]
[null,null,null,null,null,null,null,null,null,18,12,18,12,"لون الخط","عالمية - عامة",null,"اليوم العالمي للشرطة"]

{"sheet":"Calendar","index":2,"n_rows":70,"n_cols":23,"rows_kept":70,"cut":false,"hidden":false,"merged":[[4,19,4,22],[1,19,2,22],[4,0,4,3],[0,0,1,8],[2,0,2,8],[3,8,3,14],[6,18,6,20],[6,21,6,22],[21,0,21,1],[21,2,21,4],[21,5,21,6],[21,8,21,9],[6,8,6,9],[6,10,6,12],[21,13,21,14],[21,16,21,17],[21,18,21,20],[21,10,21,12],[21,21,21,22],[6,0,6,1],[6,13,6,14],[6,2,6,4],[6,5,6,6],[6,16,6,17],[36,18,36,20],[36,21,36,22],[36,0,36,1],[36,2,36,4],[36,5,36,6],[36,8,36,9],[36,10,36,12],[36,13,36,14],[36,16,36,17],[51,21,51,22],[51,10,51,12],[51,13,51,14],[51,16,51,17],[51,18,51,20],[51,0,51,1],[51,2,51,4],[51,5,51,6],[51,8,51,9]]}
[]
[]
[]
[null,null,null,null,null,null,null,null,"تقويم المناسبات"]
[1428,null,null,null,null,null,null,null,null,null,null,null,null,null,null,null,null,null,null,"2008-2007"]
[]
["يناير",null,"محرم",null,null,"فبراير",null,null,"فبراير",null,"صفر",null,null,"مارس",null,null,"مارس",null,"ربيع الأول",null,null,"أبريل"]
["السبت","الأحد","الأثنين","الثلاثاء","الأربعاء","الخميس","الجمعة",null,"السبت","الأحد","الأثنين","الثلاثاء","الأربعاء","الخميس","الجمعة",null,"السبت","الأحد","الأثنين","الثلاثاء","الأربعاء","الخميس","الجمعة"]
["SAT","SUN","MON","TUE","WED","THU","FRI",null,"SAT","SUN","MON","TUE","WED","THU","FRI",null,"SAT","SUN","MON","TUE","WED","THU","FRI"]
[1,2,3,4,5,6,7,null,null,null,1,2,3,4,5,null,null,null,null,1,2,3,4]
[20,21,22,23,24,25,26,null,null,null,19,20,21,22,23,null,null,null,null,20,21,22,23]
[8,9,10,11,12,13,14,null,6,7,8,9,10,11,12,null,5,6,7,8,9,10,11]
[27,28,29,30,31,1,2,null,24,25,26,27,28,1,2,null,24,25,26,27,28,29,30]
[15,16,17,18,19,20,21,null,13,14,15,16,17,18,19,null,12,13,14,15,16,17,18]
[3,4,5,6,7,8,9,null,3,4,5,6,7,8,9,null,31,1,2,3,4,5,6]
[22,23,24,25,26,27,28,null,20,21,22,23,24,25,26,null,19,20,21,22,23,24,25]
[10,11,12,13,14,15,16,null,10,11,12,13,14,15,16,null,7,8,9,10,11,12,13]
[29,30,null,null,null,null,null,null,27,28,29,null,null,null,null,null,26,27,28,29]
[17,18,null,null,null,null,null,null,17,18,19,null,null,null,null,null,14,15,16,17]
[]
[]
["أبريل",null,"ربيع الآخر",null,null,"مايو",null,null,"مايو",null,"جمادى الأولى",null,null,"يونيو",null,null,"يونيو",null,"جمادى الآخرة",null,null,"يوليو"]
["السبت","الأحد","الأثنين","الثلاثاء","الأربعاء","الخميس","الجمعة",null,"السبت","الأحد","الأثنين","الثلاثاء","الأربعاء","الخميس","الجمعة",null,"السبت","الأحد","الأثنين","الثلاثاء","الأربعاء","الخميس","الجمعة"]
["SAT","SUN","MON","TUE","WED","THU","FRI",null,"SAT","SUN","MON","TUE","WED","THU","FRI",null,"SAT","SUN","MON","TUE","WED","THU","FRI"]
[null,null,null,null,1,2,3,null,null,null,null,null,null,null,1,null,1,2,3,4,5,6,7]
[null,null,null,null,18,19,20,null,null,null,null,null,null,null,18,null,16,17,18,19,20,21,22]
[4,5,6,7,8,9,10,null,2,3,4,5,6,7,8,null,8,9,10,11,12,13,14]
[21,22,23,24,25,26,27,null,19,20,21,22,23,24,25,null,23,24,25,26,27,28,29]
[11,12,13,14,15,16,17,null,9,10,11,12,13,14,15,null,15,16,17,18,19,20,21]
[28,29,30,1,2,3,4,null,26,27,28,29,30,31,1,null,30,1,2,3,4,5,6]
[18,19,20,21,22,23,24,null,16,17,18,19,20,21,22,null,22,23,24,25,26,27,28]
[5,6,7,8,9,10,11,null,2,3,4,5,6,7,8,null,7,8,9,10,11,12,13]
[25,26,27,28,29,30,null,null,23,24,25,26,27,28,29,null,29]
[12,13,14,15,16,17,null,null,9,10,11,12,13,14,15,null,14]
[]
[]
["يوليو",null,"رجب",null,null,"أغسطس",null,null,"أغسطس",null,"شعبان",null,null,"سبتمبر",null,null,"سبتمبر",null,"رمضان",null,null,"أكتوبر"]
["السبت","الأحد","الأثنين","الثلاثاء","الأربعاء","الخميس","الجمعة",null,"السبت","الأحد","الأثنين","الثلاثاء","الأربعاء","الخميس","الجمعة",null,"السبت","الأحد","الأثنين","الثلاثاء","الأربعاء","الخميس","الجمعة"]
["SAT","SUN","MON","TUE","WED","THU","FRI",null,"SAT","SUN","MON","TUE","WED","THU","FRI",null,"SAT","SUN","MON","TUE","WED","THU","FRI"]
[null,1,2,3,4,5,6,null,null,null,null,1,2,3,4,null,null,null,null,null,null,1,2]
[null,15,16,17,18,19,20,null,null,null,null,14,15,16,17,null,null,null,null,null,null,13,14]
[7,8,9,10,11,12,13,null,5,6,7,8,9,10,11,null,3,4,5,6,7,8,9]
[21,22,23,24,25,26,27,null,18,19,20,21,22,23,24,null,15,16,17,18,19,20,21]
[14,15,16,17,18,19,20,null,12,13,14,15,16,17,18,null,10,11,12,13,14,15,16]
[28,29,30,31,1,2,3,null,25,26,27,28,29,30,31,null,22,23,24,25,26,27,28]
[21,22,23,24,25,26,27,null,19,20,21,22,23,24,25,null,17,18,19,20,21,22,23]
[4,5,6,7,8,9,10,null,1,2,3,4,5,6,7,null,29,30,1,2,3,4,5]
[28,29,30,null,null,null,null,null,26,27,28,29,30,null,null,null,24,25,26,27,28,29,30]
[11,12,13,null,null,null,null,null,8,9,10,11,12,null,null,null,6,7,8,9,10,11,12]
[]
[]
["أكتوبر",null,"شوال",null,null,"نوفمبر",null,null,"نوفمبر",null,"ذوالقعدة",null,null,"ديسمبر",null,null,"ديسمبر",null,"ذوالحجة",null,null,"يناير"]
["السبت","الأحد","الأثنين","الثلاثاء","الأربعاء","الخميس","الجمعة",null,"السبت","الأحد","الأثنين","الثلاثاء","الأربعاء","الخميس","الجمعة",null,"السبت","الأحد","الأثنين","الثلاثاء","الأربعاء","الخميس","الجمعة"]
["SAT","SUN","MON","TUE","WED","THU","FRI",null,"SAT","SUN","MON","TUE","WED","THU","FRI",null,"SAT","SUN","MON","TUE","WED","THU","FRI"]
[1,2,3,4,5,6,7,null,null,1,2,3,4,5,6,null,null,null,null,1,2,3,4]
[13,14,15,16,17,18,19,null,null,11,12,13,14,15,16,null,null,null,null,11,12,13,14]
[8,9,10,11,12,13,14,null,7,8,9,10,11,12,13,null,5,6,7,8,9,10,11]
[20,21,22,23,24,25,26,null,17,18,19,20,21,22,23,null,15,16,17,18,19,20,21]
[15,16,17,18,19,20,21,null,14,15,16,17,18,19,20,null,12,13,14,15,16,17,18]
[27,28,29,30,31,1,2,null,24,25,26,27,28,29,30,null,22,23,24,25,26,27,28]
[22,23,24,25,26,27,28,null,21,22,23,24,25,26,27,null,19,20,21,22,23,24,25]
[3,4,5,6,7,8,9,null,1,2,3,4,5,6,7,null,29,30,31,1,2,3,4]
[29,null,null,null,null,null,null,null,28,29,30,null,null,null,null,null,26,27,28,29,30]
[10,null,null,null,null,null,null,null,8,9,10,null,null,null,null,null,5,6,7,8,9]
[]
[]
[]
[null,"نهاية الأسبوع",null,null," ","\r\nرمضان",null,null," ","اختبارات المدارس",null,null," ","العودة للمدارس",null,null," ","إجازات"]
[" ","إجازات المدارس",null,null," ","دينية",null,null," ","عالمية - اجتماعية",null,null," ","عالمية - بيئية",null,null," ","عالمية - توعوية"]
[" ","عالمية - حقوقية",null,null," ","عالمية - صحية",null,null," ","عالمية - عامة"]